bitfinex-derivatives/quotes_SOLF0:USTF0_20260304
["timestamp","ask_amount","ask_price","bid_price","bid_amount"]
[1772624879339,29.04995602,89.799,89.696,13.60588736]
[1772624880442,29.04995602,89.799,89.692,13.60588736]
[1772624880743,29.04159172,89.797,89.69,5.50341356]
[1772624881438,29.04159172,89.797,89.696,13.60588736]
[1772624882946,29.04159172,89.797,89.699,13.60588736]
[1772624883341,29.04159172,89.797,89.698,13.60588736]
[1772624884243,29.04159172,89.797,89.697,13.60588736]
[1772624884742,8.90426169,89.796,89.69,5.50341356]
[1772624884941,29.02978744,89.795,89.693,13.60588736]
[1772624885246,29.02978744,89.795,89.692,13.60588736]
[1772624886848,29.02978744,89.795,89.71,5.50341356]
[1772624888248,29.02978744,89.795,89.691,13.60588736]
[1772624888450,29.02978744,89.795,89.69,5.50341356]
[1772624889449,29.02978744,89.795,89.695,13.60588736]
[1772624889645,29.02978744,89.795,89.696,13.60588736]
[1772624890344,29.02978744,89.795,89.695,13.60588736]
[1772624890546,29.11724081,89.789,89.73,2.31115277]
[1772624893650,29.1203285,89.779,89.71,2.31115277]
[1772624893852,29.1203285,89.769,89.7,2.31115277]
[1772624894150,29.1203285,89.739,89.67,2.31115277]
[1772624894344,29.1203285,89.739,89.69,2.31115277]
[1772624895148,29.1203285,89.739,89.646,13.60588736]
[1772624895448,29.1203285,89.739,89.67,2.31115277]
[1772624895951,29.1203285,89.739,89.68,2.31115277]
[1772624896546,29.1203285,89.739,89.65,5.50837756]
[1772624898452,29.1203285,89.739,89.66,5.50758507]
[1772624903156,29.1203285,89.739,89.677,13.60588736]
[1772624903657,29.1203285,89.739,89.672,13.60588736]
[1772624903950,29.1203285,89.739,89.673,13.60588736]
[1772624904154,29.1203285,89.739,89.677,13.60588736]
[1772624904356,29.1203285,89.739,89.678,13.60588736]
[1772624905253,29.22186829,89.789,89.689,13.60588736]
[1772624905456,29.22186829,89.787,89.69,13.60588736]
[1772624906249,29.22186829,89.787,89.691,13.60588736]
[1772624906448,29.22186829,89.787,89.689,13.60588736]
[1772624907258,29.22227767,89.785,89.69,13.60588736]
[1772624909556,29.22227767,89.785,89.691,13.60588736]
[1772624909760,29.22227767,89.785,89.694,13.60588736]
[1772624909955,29.22227767,89.785,89.7,13.60588736]
[1772624911161,5.50758507,89.81,89.689,13.60588736]
[1772624911162,29.22874618,89.783,89.689,13.60588736]
[1772624911357,29.22874618,89.783,89.691,13.60588736]
[1772624911968,29.22874618,89.783,89.69,13.60588736]
[1772624912262,29.22874618,89.783,89.692,13.60588736]
[1772624912964,29.22874618,89.783,89.691,13.60588736]
[1772624913164,29.22202484,89.781,89.692,13.60588736]
[1772624913363,29.22202484,89.781,89.693,13.60588736]
[1772624914764,29.21482471,89.779,89.688,13.60588736]
[1772624914964,29.21482471,89.779,89.66,5.50758507]
[1772624914965,29.21482471,89.779,89.699,13.60588736]
[1772624915168,29.21482471,89.779,89.693,13.60588736]
[1772624915368,29.21482471,89.779,89.694,13.60588736]
[1772624916070,29.21482471,89.777,89.688,13.60588736]
[1772624916269,29.21482471,89.775,89.684,13.60588736]
[1772624916465,29.21482471,89.773,89.684,13.60588736]
[1772624918576,29.231026,89.759,89.7,2.3125903]
[1772624920875,29.231026,89.759,89.71,2.3125903]
[1772624921171,29.15214158,89.799,89.74,2.3125903]
[1772624921367,29.15214158,89.797,89.74,2.3125903]
[1772624922073,29.15214158,89.789,89.73,2.3125903]
[1772624924074,29.15214158,89.789,89.74,2.3125903]
[1772624924277,29.15214158,89.789,89.73,2.3125903]
[1772624924472,29.15214158,89.789,89.72,2.3125903]
[1772624924978,29.10685651,89.769,89.711,13.60588736]
[1772624925172,29.10685651,89.769,89.7,20.70819299]
[1772624925173,29.10685651,89.769,89.707,13.60588736]
[1772624925474,29.10685651,89.769,89.7,2.3125903]
[1772624925776,29.10685651,89.769,89.71,2.3125903]
[1772624926176,29.10685651,89.769,89.698,13.60588736]
[1772624926368,29.10685651,89.769,89.71,2.3125903]
[1772624927278,29.10952967,89.759,89.7,2.3125903]
[1772624927478,29.10952967,89.759,89.686,13.60588736]
[1772624927678,29.10952967,89.749,89.69,2.3125903]
[1772624930478,29.10952967,89.749,89.7,2.3125903]
[1772624930879,29.10952967,89.749,89.69,2.3125903]
[1772624931079,29.12390923,89.739,89.676,13.60588736]
[1772624931376,29.12390923,89.739,89.68,2.3125903]
[1772624933182,29.12390923,89.739,89.69,2.3125903]
[1772624934283,29.12390923,89.739,89.68,2.3125903]
[1772624934976,29.12390923,89.739,89.7,2.3125903]
[1772624935178,29.12390923,89.739,89.71,2.3125903]
[1772624935378,29.12390923,89.739,89.7,2.3125903]
[1772624936177,29.12390923,89.739,89.69,13.60588736]
[1772624936381,29.12390923,89.739,89.7,2.3125903]
[1772624936884,29.12390923,89.739,89.69,2.3125903]
[1772624937079,29.12390923,89.739,89.69,15.91847766]
[1772624937279,29.12390923,89.739,89.69,2.3125903]
[1772624937685,29.12390923,89.739,89.68,2.3125903]
[1772624939783,29.12390923,89.739,89.62,34.65646239]
[1772624939784,29.12390923,89.739,89.69,2.3125903]
[1772624940384,29.12360027,89.729,89.675,13.60588736]
[1772624940589,29.12360027,89.729,89.672,13.60588736]
[1772624941191,29.12360027,89.729,89.673,13.60588736]
[1772624941786,29.12360027,89.729,89.69,2.3125903]
[1772624943290,29.12360027,89.729,89.69,15.91847766]
[1772624943590,29.12360027,89.729,89.69,2.3125903]
[1772624944092,29.12360027,89.729,89.69,15.91847766]
[1772624944391,29.12360027,89.729,89.685,13.60588736]
[1772624944792,29.12360027,89.729,89.681,13.60588736]
[1772624945292,29.12360027,89.729,89.68,2.3125903]
[1772624945293,29.12360027,89.729,89.682,13.60588736]
[1772624945492,29.12360027,89.729,89.69,2.3125903]
[1772624946590,29.12360027,89.729,89.7,2.3125903]
[1772624946895,2.3125903,89.76,89.7,2.3125903]
[1772624947189,29.18395217,89.759,89.7,2.3125903]
[1772624947396,29.18395217,89.759,89.71,2.3125903]
[1772624948495,29.18395217,89.759,89.701,13.60588736]
[1772624950696,29.18395217,89.759,89.704,13.60588736]
[1772624950894,29.18395217,89.759,89.705,13.60588736]
[1772624951393,29.18395217,89.759,89.71,15.91847766]
[1772624951696,29.18395217,89.759,89.72,2.3125903]
[1772624952494,29.18395217,89.759,89.711,13.60588736]
[1772624952696,29.18395217,89.759,89.71,2.3125903]
[1772624955101,29.18395217,89.759,89.699,13.60588736]
[1772624955301,29.18395217,89.759,89.692,13.60588736]
[1772624956199,29.18134527,89.749,89.689,13.60588736]
[1772624956400,29.18134527,89.749,89.688,13.60588736]
[1772624957300,29.18134527,89.749,89.69,2.3125903]
[1772624957803,29.18134527,89.749,89.692,13.60588736]
[1772624958600,29.18134527,89.749,89.7,2.3125903]
[1772624958996,29.18134527,89.749,89.692,13.60588736]
[1772624959200,29.18134527,89.749,89.69,2.3125903]
[1772624959905,29.1898617,89.739,89.683,13.60588736]
[1772624960204,29.1898617,89.739,89.677,13.60588736]
[1772624961404,29.1898617,89.739,89.676,13.60588736]
[1772624962405,29.1898617,89.739,89.675,13.60588736]
[1772624962905,29.1898617,89.739,89.68,2.31394177]
[1772624967300,29.13252636,89.729,89.672,13.60588736]
[1772624968102,29.13252636,89.729,89.68,2.31394177]
[1772624970012,29.13252636,89.729,89.67,15.91982913]
[1772624970212,29.13252636,89.729,89.671,13.60588736]
[1772624972415,29.13252636,89.729,89.68,2.31394177]
[1772624973314,29.13252636,89.729,89.674,13.60588736]
[1772624975316,29.13252636,89.729,89.68,2.31394177]
[1772624978223,29.13252636,89.729,89.673,13.60588736]
[1772624980317,29.13252636,89.729,89.68,2.31394177]
[1772624982124,29.13252636,89.729,89.673,13.60588736]
[1772624983327,29.13252636,89.729,89.68,2.31394177]
[1772624988331,29.13252636,89.729,89.67,2.31394177]
[1772624988832,29.13252636,89.729,89.68,2.31394177]
[1772624989336,29.13252636,89.729,89.67,2.31394177]
[1772624992228,29.13252636,89.729,89.68,2.31394177]
[1772624993234,29.13252636,89.729,89.67,2.31394177]
[1772624999442,29.13252636,89.729,89.67,15.91982913]
[1772624999842,29.13252636,89.729,89.67,2.31394177]
[1772625000344,29.1895784,89.709,89.662,13.60588736]
[1772625000639,29.1895784,89.709,89.653,13.60588736]
[1772625000945,29.1895784,89.709,89.651,13.60588736]
[1772625001147,29.19034516,89.699,89.649,13.60588736]
[1772625001347,29.19034516,89.699,89.65,13.60588736]
[1772625001738,29.19034516,89.699,89.65,15.91982913]
[1772625001940,20.57630642,89.763,89.569,47.7772076]
[1772625001941,29.19034516,89.729,89.68,2.31394177]
[1772625002245,29.19034516,89.727,89.67,2.31394177]
[1772625002447,29.19034516,89.725,89.67,2.31394177]
[1772625005544,29.19034516,89.725,89.66,2.31394177]
[1772625005752,29.25748094,89.723,89.66,2.31394177]
[1772625005950,29.25748094,89.719,89.66,2.31394177]
[1772625006249,29.25748094,89.719,89.65,2.31394177]
[1772625006446,29.25748094,89.709,89.65,2.31394177]
[1772625006950,29.25748094,89.709,89.64,23.16006207]
[1772625007246,29.25748094,89.709,89.64,2.31394177]
[1772625008343,29.35773608,89.699,89.63,2.31394177]
[1772625009351,29.35773608,89.699,89.64,2.31394177]
[1772625009649,29.35773608,89.699,89.602,1.93901573]
[1772625009650,29.35773608,89.699,89.66,2.31394177]
[1772625009849,29.35773608,89.699,89.67,2.31394177]
[1772625012549,2.31394177,89.73,89.67,2.31394177]
[1772625012550,29.35231338,89.729,89.67,2.31394177]
[1772625013039,29.35231338,89.729,89.663,13.8862216]
[1772625013040,3.72351833,89.679,89.613,8.84774723]
[1772625013441,3.72351833,89.679,89.631,8.84774723]
[1772625013644,3.72351833,89.679,89.64,2.31394177]
[1772625013954,2.31394177,89.67,89.61,2.31394177]
[1772625014146,2.31394177,89.67,89.601,8.84774723]
[1772625014748,2.31394177,89.66,89.601,8.84774723]
[1772625014945,10.2490433,89.716,89.581,1.94125473]
[1772625014946,2.31394177,89.68,89.611,8.80944952]
[1772625015947,2.31394177,89.67,89.611,8.80944952]
[1772625016344,2.31394177,89.7,89.631,8.80944952]
[1772625016650,2.31394177,89.68,89.62,2.31394177]
[1772625016954,2.31394177,89.67,89.615,8.80944952]
[1772625017555,10.2490433,89.73,89.615,8.80944952]
[1772625017847,2.31394177,89.7,89.63,2.31394177]
[1772625018046,2.31394177,89.7,89.64,2.31394177]
[1772625018451,2.31394177,89.71,89.64,11.30329447]
[1772625018653,2.31394177,89.71,89.641,8.9893527]
[1772625018852,2.31394177,89.7,89.64,2.31394177]
[1772625019154,2.31394177,89.69,89.63,2.31394177]
[1772625019950,2.31394177,89.69,89.627,9.06296602]
[1772625020553,2.31657508,89.69,89.627,9.06296602]
[1772625021054,2.31657508,89.68,89.612,9.07290875]
[1772625021245,2.31657508,89.67,89.612,9.07290875]
[1772625021445,2.31657508,89.68,89.612,9.07290875]
[1772625021644,2.31657508,89.67,89.612,9.07290875]
[1772625021847,2.31657508,89.68,89.62,2.31657508]
[1772625022051,2.31657508,89.71,89.641,9.07290875]
[1772625022252,2.31657508,89.73,89.66,11.38948383]
[1772625022554,2.31657508,89.73,89.661,9.07290875]
[1772625022946,2.31657508,89.72,89.661,9.07290875]
[1772625024252,2.31657508,89.71,89.644,9.07739685]
[1772625024546,2.31657508,89.7,89.644,9.07739685]
[1772625029862,10.2490433,89.739,89.65,2.31657508]
[1772625030165,2.31657508,89.71,89.65,2.31657508]
[1772625030367,2.31657508,89.71,89.644,9.07739685]
[1772625030866,2.31657508,89.7,89.644,9.07739685]
[1772625034071,2.31657508,89.71,89.651,9.02813409]
[1772625035163,2.31657508,89.74,89.681,9.01215118]
[1772625036273,2.31657508,89.75,89.69,2.31657508]
[1772625036474,2.31657508,89.75,89.69,11.32872626]
[1772625036672,2.31657508,89.76,89.691,9.01215118]
[1772625036876,2.31657508,89.76,89.701,9.03641996]
[1772625037072,17.63708166,89.762,89.701,9.03641996]
[1772625037270,17.63708166,89.762,89.711,9.03641996]
[1772625037467,270.25498201,89.793,89.711,9.03641996]
[1772625037672,2.31657508,89.76,89.7,2.31657508]
[1772625037872,2.31657508,89.73,89.676,9.03641996]
[1772625038572,2.31657508,89.72,89.676,9.03641996]
[1772625039578,2.31657508,89.73,89.676,9.03641996]
[1772625040074,2.31657508,89.71,89.66,9.04257972]
[1772625040978,20.56556035,89.78,89.66,9.04257972]
[1772625040979,2.31657508,89.72,89.661,9.05127589]
[1772625041178,2.31657508,89.74,89.681,9.05127589]
[1772625041377,2.31657508,89.75,89.691,9.05127589]
[1772625042476,2.31657508,89.74,89.68,2.31657508]
[1772625042780,2.31657508,89.74,89.681,9.05127589]
[1772625043771,2.31657508,89.75,89.681,9.05127589]
[1772625050384,2.31657508,89.74,89.681,9.05127589]
[1772625051783,2.31657508,89.75,89.691,9.07749167]
[1772625057389,10.2490433,89.781,89.701,9.1109472]
[1772625057390,2.31657508,89.76,89.701,9.1109472]
[1772625057582,8.23774049,89.78,89.72,2.31657508]
[1772625057784,2.31657508,89.78,89.721,9.1109472]
[1772625058393,2.31657508,89.79,89.721,9.1109472]
[1772625059384,2.31657508,89.79,89.73,2.31657508]
[1772625059584,270.25498201,89.793,89.731,9.10967959]
[1772625059787,2.31657508,89.79,89.731,9.10967959]
[1772625060390,2.31657508,89.77,89.731,9.10967959]
[1772625060585,270.25498201,89.793,89.627,191.32346525]
[1772625060586,2.31657508,89.75,89.701,9.10967959]
[1772625060886,2.31657508,89.76,89.701,9.10967959]
[1772625062294,2.31657508,89.75,89.701,9.10967959]
[1772625063394,2.31657508,89.77,89.701,9.10967959]
[1772625063589,2.31657508,89.78,89.711,9.05724733]
[1772625065395,2.31657508,89.77,89.711,9.05724733]
[1772625065792,2.31657508,89.76,89.711,9.05724733]
[1772625068400,2.31657508,89.75,89.711,9.05724733]
[1772625069603,2.31657508,89.76,89.711,9.05724733]
[1772625071999,2.31657508,89.74,89.654,9.05729144]
[1772625072303,2.31657508,89.74,89.681,9.05729144]
[1772625072503,2.31657508,89.75,89.681,9.05729144]
[1772625073802,2.31657508,89.74,89.681,9.05729144]
[1772625074002,2.31657508,89.73,89.681,9.05729144]
[1772625077597,2.31657508,89.73,89.616,27.6628497]
[1772625077598,2.31657508,89.69,89.64,9.0658573]
[1772625078006,2.31657508,89.67,89.64,9.0658573]
[1772625078604,2.31657508,89.68,89.64,9.0658573]
[1772625078807,2.31657508,89.69,89.64,9.0658573]
[1772625079306,2.31657508,89.7,89.64,9.0658573]
[1772625079805,2.31657508,89.7,89.64,11.38243238]
[1772625080003,2.31657508,89.7,89.641,8.90500814]
[1772625080506,2.31581095,89.7,89.641,8.90500814]
[1772625080800,2.31581095,89.69,89.641,8.90500814]
[1772625084304,2.31581095,89.7,89.641,8.90500814]
[1772625084904,2.31581095,89.71,89.641,8.90500814]
[1772625085205,2.31581095,89.7,89.641,8.90500814]
[1772625085909,2.31581095,89.71,89.641,8.90500814]
[1772625086103,2.31581095,89.72,89.661,8.947063]
[1772625087306,2.31581095,89.73,89.671,8.94656681]
[1772625090611,2.31581095,89.74,89.681,8.94179531]
[1772625091110,2.31581095,89.73,89.681,8.94179531]
[1772625091716,2.31581095,89.72,89.681,8.94179531]
[1772625092212,2.31581095,89.74,89.681,8.94179531]
[1772625092716,2.31581095,89.76,89.701,8.92858079]
[1772625094113,2.31581095,89.77,89.711,8.94455668]
[1772625094617,2.31581095,89.78,89.711,8.94455668]
[1772625095018,2.31581095,89.78,89.721,8.88167203]
[1772625096510,17.21622128,89.792,89.721,8.88167203]
[1772625097114,270.25498201,89.793,89.721,8.88167203]
[1772625097316,5.50372681,89.81,89.721,8.88167203]
[1772625097719,17.21820108,89.825,89.721,8.88167203]
[1772625100416,249.22443474,89.826,89.721,8.88167203]
[1772625101516,5.50372681,89.82,89.721,8.88167203]
[1772625108528,5.50372681,89.85,89.721,8.88167203]
[1772625108825,5.50372681,89.85,89.741,8.77941315]
[1772625113618,11.15,89.898,89.741,8.77941315]
[1772625113619,5.50372681,89.87,89.741,8.77941315]
[1772625116525,10.22097407,89.919,89.713,10.87690747]
[1772625116526,11.15,89.889,89.8,2.30815183]
[1772625116722,249.86858279,89.89,89.811,8.91976226]
[1772625116921,2.30815183,89.84,89.797,8.91990801]
[1772625118028,1.93725628,89.889,89.713,10.87690747]
[1772625118029,2.30815183,89.82,89.761,8.91990801]
[1772625122729,2.30815183,89.81,89.761,8.91990801]
[1772625123836,2.30815183,89.82,89.761,8.91990801]
[1772625124636,2.30815183,89.81,89.761,8.91990801]
[1772625126939,9.02253894,89.888,89.761,8.91990801]
[1772625127141,2.30815183,89.82,89.761,8.91990801]
[1772625127538,2.30815183,89.81,89.761,8.91990801]
[1772625129945,2.30815183,89.82,89.761,8.91990801]
[1772625130749,2.30815183,89.8,89.761,8.91990801]
[1772625131744,2.30815183,89.79,89.761,8.91990801]
[1772625132155,2.30815183,89.78,89.721,9.12772788]
[1772625132452,2.30815183,89.77,89.721,9.12772788]
[1772625133054,2.30815183,89.76,89.721,9.12772788]
[1772625133448,2.30815183,89.75,89.691,9.11258924]
[1772625133651,2.30815183,89.74,89.691,9.11258924]
[1772625133957,2.30815183,89.75,89.691,9.11258924]
[1772625135053,2.30815183,89.74,89.691,9.11258924]
[1772625135260,2.30815183,89.75,89.691,9.11258924]
[1772625137760,20.56556035,89.843,89.691,9.11258924]
[1772625137761,2.30815183,89.74,89.691,9.11258924]
[1772625138266,2.30815183,89.75,89.691,9.11258924]
[1772625139555,2.30815183,89.73,89.691,9.11258924]
[1772625140363,2.30815183,89.73,89.637,178.34]
[1772625140364,2.30815183,89.72,89.638,9.09179603]
[1772625140659,2.31490195,89.72,89.66,2.31490195]
[1772625140868,2.31490195,89.72,89.661,9.09179603]
[1772625141255,2.31490195,89.73,89.661,9.09179603]
[1772625141863,2.31490195,89.72,89.661,9.09179603]
[1772625142863,2.31490195,89.73,89.671,9.08152531]
[1772625143062,2.31490195,89.74,89.681,9.08152531]
[1772625143262,271.08103464,89.796,89.701,9.08152531]
[1772625143263,2.31490195,89.76,89.701,9.08152531]
[1772625143467,2.31490195,89.77,89.701,9.08152531]
[1772625144567,271.08103464,89.796,89.701,9.08152531]
[1772625144866,17.23395154,89.795,89.701,9.08152531]
[1772625146266,271.08103464,89.796,89.701,9.08152531]
[1772625148570,5.50489599,89.78,89.701,9.08152531]
[1772625151266,271.08103464,89.796,89.701,9.08152531]
[1772625154472,5.50489599,89.82,89.701,9.08152531]
[1772625154870,5.50489599,89.8,89.701,9.08152531]
[1772625159973,10.21214951,89.832,89.701,9.08152531]
[1772625160173,8.20885367,89.863,89.68,5.50489599]
[1772625160174,5.50489599,89.85,89.731,9.13125309]
[1772625160674,5.50489599,89.87,89.741,9.13125309]
[1772625161071,5.50489599,89.87,89.761,9.26763931]
[1772625166871,17.15331816,89.889,89.761,9.26763931]
[1772625167079,5.50489599,89.88,89.761,9.26763931]
[1772625168073,5.50489599,89.86,89.761,9.26763931]
[1772625170676,5.50489599,89.84,89.761,9.26763931]
[1772625173885,5.50489599,89.84,89.746,9.4485896]
[1772625174184,5.50489599,89.82,89.746,9.4485896]
[1772625181191,5.50489599,89.84,89.746,9.4485896]
[1772625181991,22.66318215,89.86,89.746,9.4485896]
[1772625182189,9.04303045,89.859,89.746,9.4485896]
[1772625182386,5.50489599,89.86,89.746,9.4485896]
[1772625184893,8.11599867,89.886,89.746,9.4485896]
[1772625185093,5.50489599,89.86,89.746,9.4485896]
[1772625188486,2.30914189,89.82,89.761,9.45621017]
[1772625189091,2.30914189,89.83,89.761,9.45621017]
[1772625189491,2.30914189,89.82,89.761,9.45621017]
[1772625191197,8.11599867,89.878,89.761,9.45621017]
[1772625191198,2.30914189,89.83,89.761,9.45621017]
[1772625192599,2.30914189,89.82,89.761,9.45621017]
[1772625192997,2.30914189,89.83,89.761,9.45621017]
[1772625194900,2.30914189,89.84,89.771,9.44307916]
[1772625195303,298.0,89.899,89.781,9.44307916]
[1772625195304,17.07995462,89.877,89.781,9.44307916]
[1772625195601,2.30914189,89.86,89.791,9.44307916]
[1772625197901,2.30914189,89.87,89.811,9.51047065]
[1772625199808,17.07995462,89.889,89.811,9.51047065]
[1772625199809,2.30914189,89.88,89.811,9.51047065]
[1772625200211,2.30914189,89.89,89.821,9.49372224]
[1772625200406,2.30914189,89.87,89.821,9.49372224]
[1772625200603,2.30688153,89.87,89.821,9.49372224]
[1772625200803,2.30688153,89.86,89.821,9.49372224]
[1772625202509,2.30688153,89.87,89.821,9.49372224]
[1772625203614,2.30688153,89.86,89.821,9.49372224]
[1772625205115,2.30688153,89.86,89.79,2.30688153]
[1772625205116,2.30688153,89.86,89.807,9.42803534]
[1772625205416,2.30688153,89.84,89.781,9.42803534]
[1772625205715,2.30688153,89.83,89.781,9.42803534]
[1772625206710,10.21214951,89.881,89.781,9.42803534]
[1772625206915,2.30688153,89.83,89.781,9.42803534]
[1772625209122,10.21214951,89.881,89.781,9.42803534]
[1772625209322,2.30688153,89.84,89.781,9.42803534]
[1772625210424,2.30688153,89.87,89.811,9.36881185]
[1772625211723,17.07995462,89.897,89.811,9.36881185]
[1772625212025,2.30688153,89.88,89.821,9.36736323]
[1772625214918,2.30688153,89.89,89.821,9.36736323]
[1772625215123,2.30688153,89.89,89.74,187.64719648]
[1772625215124,2.30688153,89.89,89.831,9.36644229]
[1772625215622,245.04657716,89.898,89.831,9.36644229]
[1772625215815,2.30688153,89.91,89.851,9.36644229]
[1772625216327,2.30688153,89.9,89.851,9.36644229]
[1772625216521,2.30688153,89.91,89.851,9.36644229]
[1772625216823,2.30688153,89.9,89.851,9.36644229]
[1772625217422,2.30688153,89.91,89.851,9.36644229]
[1772625217818,2.30688153,89.89,89.851,9.36644229]
[1772625218223,2.30688153,89.9,89.851,9.36644229]
[1772625220832,2.30688153,89.91,89.851,9.36644229]
[1772625221426,2.30688153,89.9,89.851,9.36644229]
[1772625221829,2.30688153,89.89,89.851,9.36644229]
[1772625222728,2.30688153,89.88,89.821,9.34935194]
[1772625223629,2.30688153,89.89,89.821,9.34935194]
[1772625224829,2.30688153,89.88,89.821,9.34935194]
[1772625226525,2.30688153,89.9,89.831,9.38587507]
[1772625228526,2.30688153,89.88,89.831,9.38587507]
[1772625228924,2.30688153,89.89,89.831,9.38587507]
[1772625229731,10.21214951,89.918,89.831,9.38587507]
[1772625229732,2.30688153,89.88,89.831,9.38587507]
[1772625229932,2.30688153,89.87,89.831,9.38587507]
[1772625230134,2.30688153,89.86,89.811,9.3759933]
[1772625231033,2.30688153,89.87,89.811,9.3759933]
[1772625231431,2.30688153,89.88,89.811,9.3759933]
[1772625231829,2.30688153,89.88,89.821,9.36262408]
[1772625233135,2.30688153,89.86,89.821,9.36262408]
[1772625233837,2.30688153,89.88,89.821,9.36262408]
[1772625234438,2.30688153,89.89,89.821,9.36262408]
[1772625234638,2.30688153,89.9,89.831,9.43797094]
[1772625235939,2.30688153,89.89,89.831,9.43797094]
[1772625236138,8.9760367,89.918,89.831,9.43797094]
[1772625236139,8.16144901,89.918,89.831,9.43797094]
[1772625236436,3.74510493,89.909,89.855,3.86122022]
[1772625237137,3.74510493,89.929,89.855,3.86122022]
[1772625255857,3.74510493,89.909,89.839,3.86122022]
[1772625256465,2.30644199,89.88,89.839,3.86122022]
[1772625257165,2.30644199,89.87,89.799,3.86122022]
[1772625257367,2.30644199,89.87,89.801,3.86122022]
[1772625258467,2.30644199,89.87,89.811,3.7269077]
[1772625259970,2.30644199,89.85,89.811,3.7269077]
[1772625260470,2.30777058,89.86,89.811,3.7269077]
[1772625260973,3.56091636,89.869,89.811,3.7269077]
[1772625261269,2.30777058,89.88,89.821,3.7269077]
[1772625262072,2.30777058,89.87,89.821,3.7269077]
[1772625264259,2.30777058,89.85,89.791,3.83830582]
[1772625265869,3.71008238,89.859,89.791,3.83830582]
[1772625266270,3.71008238,89.859,89.801,3.83830582]
[1772625266771,2.30777058,89.87,89.811,3.83830582]
[1772625267372,3.71008238,89.874,89.811,3.83830582]
[1772625269570,3.71008238,89.869,89.811,3.83830582]
[1772625273675,3.71008238,89.859,89.811,3.83830582]
[1772625273975,2.30777058,89.85,89.811,3.83830582]
[1772625276482,3.71008238,89.859,89.811,3.83830582]
[1772625278975,2.30777058,89.85,89.811,3.83830582]
[1772625279175,3.71008238,89.849,89.798,3.83830582]
[1772625279377,2.30777058,89.84,89.798,3.83830582]
[1772625280886,3.71008238,89.849,89.798,3.83830582]
[1772625282188,3.71008238,89.829,89.781,3.83830582]
[1772625282492,2.30777058,89.81,89.767,3.83830582]
[1772625283491,3.71008238,89.819,89.767,3.83830582]
[1772625284087,3.71008238,89.839,89.771,3.83830582]
[1772625285186,3.71008238,89.873,89.811,3.83830582]
[1772625294798,3.71008238,89.873,89.771,3.7100899]
[1772625296899,3.90069464,89.884,89.791,3.7100899]
[1772625297394,3.90069464,89.883,89.791,3.7100899]
[1772625297595,3.90069464,89.897,89.821,1.41838276]
[1772625298094,3.90069464,89.925,89.821,1.41838276]
[1772625303896,10.21214951,89.939,89.821,1.41838276]
[1772625304101,3.90069464,89.938,89.841,1.49177092]
[1772625306303,3.90069464,89.964,89.861,1.4997125]
[1772625306502,2.30220249,89.96,89.901,1.4997125]
[1772625306701,3.90069464,89.949,89.901,1.4997125]
[1772625309204,3.90069464,89.962,89.901,1.4997125]
[1772625309708,3.90069464,89.979,89.911,1.48860191]
[1772625309896,2.30220249,89.96,89.893,1.48860191]
[1772625310206,3.90069464,89.949,89.893,1.48860191]
[1772625310502,16.81052633,89.984,89.901,1.48860191]
[1772625310706,47.4976961,90.093,89.901,1.48860191]
[1772625310707,3.90069464,89.969,89.901,1.48860191]
[1772625311008,3.90069464,89.959,89.901,1.48860191]
[1772625311900,3.90069464,89.949,89.901,1.48860191]
[1772625313301,3.90069464,89.949,89.861,1.33570427]
[1772625321503,3.61388932,89.929,89.821,1.44675531]
[1772625325910,3.61388932,89.929,89.841,1.0625489]
[1772625332514,3.61388932,89.929,89.87,2.30385885]
[1772625340018,3.61388932,89.929,89.867,1.02326891]
[1772625341022,3.61388932,89.929,89.87,2.30385885]
[1772625342023,3.61388932,89.929,89.871,1.00859512]
[1772625342319,3.61388932,89.929,89.861,1.00859512]
[1772625344320,2.30385885,89.92,89.861,1.00859512]
[1772625344523,3.61388932,89.929,89.835,1.03968787]
[1772625344524,2.30385885,89.9,89.835,1.03968787]
[1772625344827,3.44938474,89.899,89.835,1.03968787]
[1772625345822,3.44938474,89.879,89.821,0.94849674]
[1772625346023,3.44938474,89.921,89.86,2.30385885]
[1772625346428,3.44938474,89.919,89.851,0.94849674]
[1772625346629,3.44938474,89.909,89.84,2.30385885]
[1772625347429,3.44938474,89.899,89.84,1.23014046]
[1772625348028,3.44938474,89.889,89.83,2.30385885]
[1772625348923,3.44938474,89.889,89.826,1.23014046]
[1772625354331,3.44938474,89.889,89.82,2.30385885]
[1772625356135,3.79079923,89.879,89.831,2.38565272]
[1772625356431,3.79079923,89.879,89.84,2.30385885]
[1772625357134,3.79079923,89.909,89.841,2.37616233]
[1772625357330,3.79079923,89.909,89.86,2.30385885]
[1772625358427,3.79079923,89.909,89.851,2.37616233]
[1772625362040,3.79079923,89.909,89.84,2.30385885]
[1772625362636,3.79079923,89.909,89.84,4.63650311]
[1772625363635,2.30385885,89.9,89.83,2.30385885]
[1772625363940,3.79079923,89.899,89.83,2.30385885]
[1772625364136,3.79079923,89.899,89.773,27.6628497]
[1772625364137,3.79079923,89.879,89.813,2.35166941]
[1772625365747,3.79079923,89.869,89.813,2.35166941]
[1772625369753,3.79079923,89.869,89.82,2.30385885]
[1772625369956,3.79079923,89.869,89.821,2.38790794]
[1772625372155,3.79079923,89.869,89.81,2.30385885]
[1772625373460,3.79079923,89.869,89.806,2.38651766]
[1772625376051,3.79079923,89.869,89.82,2.30385885]